Workbook

Sheet GebStandard
B1: Gebäudestandards und Wägungsanteile für Mehrfamilienhäuser und Wohnhäuser mit Mischnutzung; Stufen 3 - 5 gemäß Anlage 4 der ImmoWertV, Stufen 1 + 2 Ergänzungen durch Sprengnetter
K3: =EingabeMaske!E1 -> WE-Rechner, Version 2 - LGMB 2025, Stand 11.2025
B4: Wägungsan- teile (∑100 %) | C4: Stufe 1 | E4: Stufe 2 | G4: Stufe 3 | I4: Stufe 4 | K4: Stufe 5
B5: Außenwände | C5: Holzfachwerk, Ziegelmauerwerk; Fugenglattstrich, Putz, Verkleidung mit Faserzementplatten, Bitumenschindeln oder einfachen Kunststoffplatten; kein oder deutlich nicht zeitgemäßer Wärmeschutz (vor ca. 1980) | E5: ein-/zweischaliges Mauerwerk, z. B. Gitterziegel oder Hohlblocksteine; verputzt und gestrichen oder Holzverkleidung; nicht zeitgemäßer Wärmeschutz (vor ca. 1995) | G5: ein-/zweischaliges Mauerwerk, z. B. aus Leichtziegeln, Kalksandsteinen, Gasbetonsteinen; Edelputz; Wärmedämmverbundsystem oder Wärmedämmputz (nach ca. 1995) | I5: Verblendmauerwerk, zweischalig, hinterlüftet, Vorhangfassade (z. B. Naturschiefer); Wärmedämmung (nach ca. 2005) | K5: aufwendig gestaltete Fassaden mit konstruktiver Gliederung (Säulenstell-ungen, Erker etc.), Sichtbeton-Fertig-teile, Natursteinfassade, Elemente aus Kupfer-/Eloxalblech, mehrgeschoss. Glasfassaden; hochwertigste Dämmung | N5: =IF(N6=TRUE,1,0) -> 0 | O5: =IF(O6=TRUE,1,0) -> 0 | P5: 1 | Q5: 0 | R5: 0
B6: 23% | C6: =ROUND($B6/$S6*N5,4) -> 0 | E6: =ROUND($B6/$S6*O5,4) -> 0 | G6: =ROUND($B6/$S6*P5,4) -> 0.23 | I6: =ROUND($B6/$S6*Q5,4) -> 0 | K6: =ROUND($B6/$S6*R5,4) -> 0 | N6: FALSE | O6: FALSE | P6: TRUE | Q6: FALSE | R6: FALSE | S6: =COUNTIF(N6:R6,TRUE) -> 1
B7: Dach | C7: Dachpappe, Faserzementplatten/ Wellplatten; keine bis geringe Dachdämmung | E7: einfache Betondachsteine oder Tondachziegel, Bitumenschindeln; nicht zeitgemäße Dachdämmung (vor ca. 1995) | G7: Faserzement-Schindeln, beschichtete Betondachsteine und Tondachziegel, Folienabdichtung; Dachdämmung (nach ca. 1995) | I7: glasierte Tondachziegel, Flachdach- ausbildung tlw. als Dachterrassen; Konstruktion in Brettschichtholz, schweres Massivflachdach; besondere Dachformen, z. B. Mansarden-, Walmdach; Aufsparrendämmung, überdurchschn. Dämmung (nach ca. 2005) | K7: hochwertige Eindeckung z. B. aus Schiefer oder Kupfer, Dachbegrünung, befahrbares Flachdach; stark überdurchschnittliche Dämmung | N7: =IF(N8=TRUE,1,0) -> 0 | O7: =IF(O8=TRUE,1,0) -> 0 | P7: =IF(P8=TRUE,1,0) -> 1 | Q7: =IF(Q8=TRUE,1,0) -> 0 | R7: =IF(R8=TRUE,1,0) -> 0
B8: 15% | C8: =ROUND($B8/$S8*N7,4) -> 0 | E8: =ROUND($B8/$S8*O7,4) -> 0 | G8: =ROUND($B8/$S8*P7,4) -> 0.15 | I8: =ROUND($B8/$S8*Q7,4) -> 0 | K8: =ROUND($B8/$S8*R7,4) -> 0 | N8: FALSE | O8: FALSE | P8: TRUE | Q8: FALSE | R8: FALSE | S8: =COUNTIF(N8:R8,TRUE) -> 1
B9: Fenster und Außentüren | C9: Einfachverglasung; einfache Holztüren | E9: Zweifachverglasung (vor ca. 1995); Haustür mit nicht zeitgemäßem Wärmeschutz (vor ca. 1995) | G9: Zweifachverglasung (nach ca. 1995), Rollläden (manuell); Haustür mit zeitgemäßem Wärmeschutz (nach ca. 1995) | I9: Dreifachverglasung, Sonnenschutz- glas, aufwendigere Rahmen, Rollläden (elektr.); höherwertige Türanlagen z. B. mit Seitenteil, besonderer Einbruchschutz | K9: große feststehende Fensterflächen, Spezialverglasung (Schall- und Sonnenschutz); Außentüren in hochwertigen Materialien | N9: =IF(N10=TRUE,1,0) -> 0 | O9: =IF(O10=TRUE,1,0) -> 0 | P9: =IF(P10=TRUE,1,0) -> 1 | Q9: =IF(Q10=TRUE,1,0) -> 0 | R9: =IF(R10=TRUE,1,0) -> 0
B10: 11% | C10: =ROUND($B10/$S10*N9,4) -> 0 | E10: =ROUND($B10/$S10*O9,4) -> 0 | G10: =ROUND($B10/$S10*P9,4) -> 0.11 | I10: =ROUND($B10/$S10*Q9,4) -> 0 | K10: =ROUND($B10/$S10*R9,4) -> 0 | N10: FALSE | O10: FALSE | P10: TRUE | Q10: FALSE | R10: FALSE | S10: =COUNTIF(N10:R10,TRUE) -> 1
B11: Innenwände und -türen | C11: Fachwerkwände, einfache Putze/Lehmputze, einfache Kalkanstriche; Füllungstüren, gestrichen, mit einfachen Beschlägen ohne Dichtungen | E11: massive tragende Innenwände, nicht tragende Wände in Leichtbauweise (z. B. Holzständerwände mit Gipskarton), Gipsdielen; leichte Türen, Stahlzargen | G11: nicht tragende Innenwände in massiver Ausführung bzw. mit Dämmmaterial gefüllte Ständerkonstruktionen; schwere Türen | I11: Sichtmauerwerk; Massivholztüren, Schiebetürelemente, Glastüren, strukturierte Türblätter | K11: gestaltete Wandabläufe (z. B. Pfeilervorlagen, abgesetzte oder geschwungene Wandpartien); Brandschutzverkleidung; raumhohe aufwendige Türelemente | N11: =IF(N12=TRUE,1,0) -> 0 | O11: =IF(O12=TRUE,1,0) -> 0 | P11: =IF(P12=TRUE,1,0) -> 1 | Q11: =IF(Q12=TRUE,1,0) -> 0 | R11: =IF(R12=TRUE,1,0) -> 0
B12: 11% | C12: =ROUND($B12/$S12*N11,4) -> 0 | E12: =ROUND($B12/$S12*O11,4) -> 0 | G12: =ROUND($B12/$S12*P11,4) -> 0.11 | I12: =ROUND($B12/$S12*Q11,4) -> 0 | K12: =ROUND($B12/$S12*R11,4) -> 0 | N12: FALSE | O12: FALSE | P12: TRUE | Q12: FALSE | R12: FALSE | S12: =COUNTIF(N12:R12,TRUE) -> 1
B13: Deckenkon- struktion | C13: Holzbalkendecken ohne Füllung, Spalierputz | E13: Holzbalkendecken mit Füllung, Kappendecken | G13: Betondecken mit Tritt- und Luftschallschutz (z. B. schwimmender Estrich); einfacher Putz | I13: zusätzlich Deckenverkleidung | K13: Deckenvertäfelungen (Edelholz, Metall) | N13: =IF(N14=TRUE,1,0) -> 0 | O13: =IF(O14=TRUE,1,0) -> 0 | P13: =IF(P14=TRUE,1,0) -> 1 | Q13: =IF(Q14=TRUE,1,0) -> 0 | R13: =IF(R14=TRUE,1,0) -> 0
B14: 11% | C14: =ROUND($B14/$S14*N13,4) -> 0 | E14: =ROUND($B14/$S14*O13,4) -> 0 | G14: =ROUND($B14/$S14*P13,4) -> 0.11 | I14: =ROUND($B14/$S14*Q13,4) -> 0 | K14: =ROUND($B14/$S14*R13,4) -> 0 | N14: FALSE | O14: FALSE | P14: TRUE | Q14: FALSE | R14: FALSE | S14: =COUNTIF(N14:R14,TRUE) -> 1
B15: Fußböden | C15: ohne Belag | E15: Linoleum-, Teppich-, Laminat- und PVC-Böden einfacher Art und Ausführung | G15: Linoleum-, Teppich-, Laminat- und PVC-Böden besserer Art und Ausführung, Fliesen, Kunststeinplatten | I15: Natursteinplatten, Fertigparkett, hochwertige Fliesen, Terrazzobelag, hochwertige Massivholzböden auf aufgedämmter Unterkonstruktion | K15: hochwertiges Parkett, hochwertige Natursteinplatten, hochwertige Edelholzböden auf gedämmter Unterkonstruktion | N15: =IF(N16=TRUE,1,0) -> 0 | O15: =IF(O16=TRUE,1,0) -> 0 | P15: =IF(P16=TRUE,1,0) -> 1 | Q15: =IF(Q16=TRUE,1,0) -> 0 | R15: =IF(R16=TRUE,1,0) -> 0
B16: 5% | C16: =ROUND($B16/$S16*N15,4) -> 0 | E16: =ROUND($B16/$S16*O15,4) -> 0 | G16: =ROUND($B16/$S16*P15,4) -> 0.05 | I16: =ROUND($B16/$S16*Q15,4) -> 0 | K16: =ROUND($B16/$S16*R15,4) -> 0 | N16: FALSE | O16: FALSE | P16: TRUE | Q16: FALSE | R16: FALSE | S16: =COUNTIF(N16:R16,TRUE) -> 1
B17: Sanitärein- richtungen | C17: einfaches Bad mit Stand-WC; Installation auf Putz, Ölfarbenanstrich, einfache PVC-Bodenbeläge | E17: 1 Bad mit WC, Dusche oder Badewanne; einfache Wand- und Bodenfliesen, teilweise gefliest | G17: 1 Bad mit WC je Wohneinheit; Dusche und Badewanne; Wand- und Bodenfliesen, raumhoch gefliest | I17: 1 – 2 Bäder je Wohneinheit mit tlw. zwei Waschbecken, tlw. Bidet/ Urinal, Gäste-WC, bodengleiche Dusche; Wand- und Bodenfliesen jeweils in gehobener Qualität | K17: 2 und mehr Bäder je Wohneinheit; hochwertige Wand- und Bodenplatten (oberflächenstrukturiert, Einzel- und Flächendekors) | N17: =IF(N18=TRUE,1,0) -> 0 | O17: =IF(O18=TRUE,1,0) -> 0 | P17: =IF(P18=TRUE,1,0) -> 1 | Q17: =IF(Q18=TRUE,1,0) -> 0 | R17: =IF(R18=TRUE,1,0) -> 0
B18: 9% | C18: =ROUND($B18/$S18*N17,4) -> 0 | E18: =ROUND($B18/$S18*O17,4) -> 0 | G18: =ROUND($B18/$S18*P17,4) -> 0.09 | I18: =ROUND($B18/$S18*Q17,4) -> 0 | K18: =ROUND($B18/$S18*R17,4) -> 0 | N18: FALSE | O18: FALSE | P18: TRUE | Q18: FALSE | R18: FALSE | S18: =COUNTIF(N18:R18,TRUE) -> 1
B19: Heizung | C19: Einzelöfen, Schwerkraftheizung | E19: Fern- oder Zentralheizung, einfache Warmluftheizung, einzelne Gasaußen-wandthermen, Nachtstromspeicher-, Fußbodenheizung (vor ca. 1995) | G19: elektronisch gesteuerte Fern- oder Zentralheizung, Niedertemperatur- oder Brennwertkessel | I19: Fußbodenheizung, Solarkollektoren für Warmwassererzeugung | K19: Solarkollektoren für Warmwassererzeugung und Heizung, Blockheizkraftwerk, Wärmepumpe, Hybrid-Systeme | N19: =IF(N20=TRUE,1,0) -> 0 | O19: =IF(O20=TRUE,1,0) -> 0 | P19: =IF(P20=TRUE,1,0) -> 1 | Q19: =IF(Q20=TRUE,1,0) -> 0 | R19: =IF(R20=TRUE,1,0) -> 0
B20: 9% | C20: =ROUND($B20/$S20*N19,4) -> 0 | E20: =ROUND($B20/$S20*O19,4) -> 0 | G20: =ROUND($B20/$S20*P19,4) -> 0.09 | I20: =ROUND($B20/$S20*Q19,4) -> 0 | K20: =ROUND($B20/$S20*R19,4) -> 0 | N20: FALSE | O20: FALSE | P20: TRUE | Q20: FALSE | R20: FALSE | S20: =COUNTIF(N20:R20,TRUE) -> 1
B21: Sonstige technische Ausstattung | C21: sehr wenige Steckdosen, Schalter und Sicherungen, kein Fehlerstromschutzschalter (FI-Schalter), Leitungen teilweise auf Putz | E21: wenige Steckdosen, Schalter und Sicherungen | G21: zeitgemäße Anzahl an Steckdosen und Lichtauslässen; Zählerschrank (ab ca. 1985) mit Unterverteilung und Kippsicherungen | I21: zahlreiche Steckdosen und Lichtaus- lässe, hochwertige Abdeckungen, de-zentrale Lüftung mit Wärme- tauscher, mehrere LAN- und Fernseh-anschlüsse, Personenaufzugsanlagen | K21: Video- und zentrale Alarmanlage, zentrale Lüftung mit Wärmetauscher, Klimaanlage, Bussystem; aufwendige Personenaufzugsanlagen | N21: =IF(N22=TRUE,1,0) -> 0 | O21: =IF(O22=TRUE,1,0) -> 0 | P21: =IF(P22=TRUE,1,0) -> 1 | Q21: =IF(Q22=TRUE,1,0) -> 0 | R21: =IF(R22=TRUE,1,0) -> 0
B22: 6% | C22: =ROUND($B22/$S22*N21,4) -> 0 | E22: =ROUND($B22/$S22*O21,4) -> 0 | G22: =ROUND($B22/$S22*P21,4) -> 0.06 | I22: =ROUND($B22/$S22*Q21,4) -> 0 | K22: =ROUND($B22/$S22*R21,4) -> 0 | N22: FALSE | O22: FALSE | P22: TRUE | Q22: FALSE | R22: FALSE | S22: =COUNTIF(N22:R22,TRUE) -> 1
B23: Summe | C23: =SUM(C6:C22) -> 0 | E23: =SUM(E6:E22) -> 0 | G23: =SUM(G6:G22) -> 1 | I23: =SUM(I6:I22) -> 0 | K23: =SUM(K6:K22) -> 0
B24: Standardstufe (gewogen): | E24: =(1*C23+2*E23+3*G23+4*I23+5*K23) -> 3 | G24: 2 bis 5 | I24: =IF(E24<2,"Grenzwert wird unterschritten","") -> 
B26: Die Ermittlung des Gebäudestandards über die Gebäudestandardtabelle wurde durchgeführt | K26: nein
B28: Hinweis: | C28: ="Das tatsächliche Baujahr nach Eintragung in der EingabeMaske beträgt "&EingabeMaske!D16&"." -> Das tatsächliche Baujahr nach Eintragung in der EingabeMaske beträgt 1995.
C29: =IF(OR((E24>2)*(E24<=2.5)*(EingabeMaske!D16>=2000),(E24<=3)*(EingabeMaske!D16>=2015)),"Die Standardstufe in Höhe von "&E24&" ist - bezogen auf das Baujahr - außergewöhnlich niedrig. Bitte überprüfen Sie Ihre Eingaben!","") -> 

Sheet EingabeMaske
E1: WE-Rechner, Version 2 - LGMB 2025, Stand 11.2025
A3: Vergleichswertberechnung für Wohnungseigentum mittels Anwendungsfunktion aus dem Landesgrundstücksmarktberichtes 2025
A4: gem. § 182 Abs.2 BewG i. V. m. § 183 BewG.
A7: Eingabefelder blau | B7: Berechnungsfelder rot
A9: Angaben zum Wertermittlungsobjekt
A11: Adresse und Ort | B11: Musterstraße 13, 00000 Musterstadt
A12: Gemeinde / Gemarkung / Landkreis bzw. Stadt: | D12: Bobenheim-Roxheim - Roxheim
B13: / /
A15: Wertermittlungsstichtag (WST): | D15: 2024-01-02
A16: tatsächliches Baujahr | D16: 1995
A17: Anzahl der Sondereigentume im Gebäude (ASE) | D17: 10
A18: Miteigentumsanteil (MEA) | C18: Zähler | D18: 1
C19: Nenner | D19: 10
A20: Grundstücksfläche (Gf): | D20: 1000
A21: Gesamtflächenanteil (GF-Anteil) | B21: =IF(D21>260,"Flächenanteil überschreitet Grenzwert","") ->  | D21: =IF(ROUND(D20*D18/D19,1)<=300,ROUND(D20*D18/D19,1),"Grenzwert übeschritten") -> 100
A22: Bodenrichtwert (BRW) 01.01.2024 (Auf ältere Stichtage erfolgt eine Umrechnung mittels eines Indexes) | D22: 300
A23: Wohnfläche (WF) | D23: 82
A24: Vermietungssituation (VS) | C24: (vermietet =1, unvermietet = 0) | D24: 0
A25: Sondereigentume, Sondernutzungsrechte
A26: Anzahl Garagen | B26: 0 | C26: Anzahl Stellplätze der Garage/n | D26: 0 | G26: =IF((B26>0)*(D26=0),"Eingabe Anzahl der Stellplätze erforderlich!","") -> 
A27: Anzahl Carports | B27: 0 | C27: Anzahl Stellplätze der/des Carports | D27: 0 | G27: =IF((B27>0)*(D27=0),"Eingabe Anzahl der Stellplätze erforderlich!","") -> 
A28: Außenstellplätze | C28: Anzahl | D28: 0
A29: Sonstiges | D29: 0
A31: Gebäudestandardstufe (GST): siehe Blatt "GebStandard" | C31: =IF(GebStandard!K26="nein","Ermittlung des Gebäudestandards wurde nicht bestätigt!","") -> Ermittlung des Gebäudestandards wurde nicht bestätigt! | D31: =IF(GebStandard!K26="nein","Standardtabelle auf Blatt GebStandard ausfüllen",IF(GebStandard!E24>=2,GebStandard!E24,"Grenzwert von 2,0 unterschritten")) -> Standardtabelle auf Blatt GebStandard ausfüllen | G31: =IF(GebStandard!E24<2,"Der Gebäudestandard liegt unter der Standardstufe 2. Somit ist der Grenzwert unterschritten und die Bewertung hat im Sachwertverfahren zu erfolgen!","") -> 
A32: Marktsegment | D32: =VLOOKUP(EingabeMaske!B$13,'Vergleichsfaktoren 2025 (2)'!A8:H3022,6) -> 0 | G32: =IF(D22>1500,"Plausibel? Wurde nicht irrtümlich ein Geschäftslagenwert statt des Wohnlagewertes eingegeben?","") -> 
A33: Index nach Marktsegment zum Wertermittlungsstichtag (2010 =100): | D33: =IF(D15<DATE(2025,1,2),'Indizes 2024 Schätzung 2025'!Y18,'Indizes 2025 Schätzung 2026'!Y18) -> 
A34: Miteigentumsanteil (MEA) | C34: in Prozent | D34: =IF(D18>=D19,"Fehler",ROUND(D18/D19,4)) -> 0.1
A35: Vergleichswert ggf. vorhandener Garage/n, Carport/s und Außenstellplätzen | C35: rd. | D35: ='Berechnung und Ergebnis'!E44+'Berechnung und Ergebnis'!E45+'Berechnung und Ergebnis'!E46 -> 
A36: Vergleichswert inkl. ggf. vorhandener Garage/n, Carport/s und Außenstellplätzen | C36: rd. | D36: ='Berechnung und Ergebnis'!K51 -> 
D38: pauschale Schäzung
A39: fiktives Baujahr: siehe Blatt "RND" | B39: =IF(RND!G34="ja",RND!G33,"liegt nicht vor") -> liegt nicht vor | C39: Gebäudestandard nach fiktivem Baujahr nicht übernehmen | D39: ='Vergleichsdaten LGMB 2025'!B33 -> - | G39: =IF(C39='Vergleichsdaten LGMB 2025'!A23,"Die pauschale Schätzung des Gebäudestandards auf Grundlage des fiktiven Baujahres ist zur Berechnung des Bedarfswerts nur im Ausnahmefall zu übernehmen.","") -> 
A41: Quelle: Oberer Gutachterausschuss für Grundstückswerte Rheinland-Pfalz gem. Landesgrundstückmarktbericht 2025

Sheet Berechnung und Ergebnis
B1: =EingabeMaske!E1 -> WE-Rechner, Version 2 - LGMB 2025, Stand 11.2025
B2: Vergleichswertberechnung für Wohnungseigentum mittels Anwendungsfunktion aus dem Landesgrundstücksmarktberichtes 2025 gem. § 182 Abs.2 BewG i. V. m. § 183 BewG
B4: Bezeichnung des Wertermittlungsobjekts der Bewertung nach § 183 BewG:
B5: =EingabeMaske!B11 -> Musterstraße 13, 00000 Musterstadt
B6: Angaben zum Wertermittlungsobjekt (WO)
B7: Wertermittlungsstichtag (WST): | K7: =EingabeMaske!D15 -> 2024-01-02
B8: Anzahl der Wohneinheiten in der Wohnanlage: | K8: =EingabeMaske!D17 -> 10
B9: =EingabeMaske!A20 -> Grundstücksfläche (Gf): | K9: =ROUND(EingabeMaske!D20,0) -> 1000
B10: Miteigentumsanteil: | K10: =ROUND(EingabeMaske!D34,4) -> 0.1
B11: Bodenrichtwert (BRW) 01.01.2024: | K11: =ROUND(EingabeMaske!D22,0) -> 300
B12: =EingabeMaske!A31 -> Gebäudestandardstufe (GST): siehe Blatt "GebStandard" | K12: =ROUND(EingabeMaske!D31,2) -> 
B13: Wohnfläche (WF): | K13: =ROUND(EingabeMaske!D23,2) -> 82
B14: Vermietungssituation: | K14: =IF(EingabeMaske!D24=0,"unvermietet","vermietet") -> unvermietet
B15: Sondereigentume, Sondernutzungsrechte: | D15: =EingabeMaske!B26 -> 0 | E15: Garage/n | F15: mit | G15: =EingabeMaske!D26 -> 0 | H15: Stellplätzen | K15: ='Vergleichsdaten LGMB 2025'!L18 -> 
D16: =EingabeMaske!B27 -> 0 | E16: Carport/s | F16: mit | G16: =EingabeMaske!D27 -> 0 | H16: Stellplätzen | K16: ='Vergleichsdaten LGMB 2025'!L19 -> 
D17: =EingabeMaske!D28 -> 0 | E17: Außenstellplätze | K17: ='Vergleichsdaten LGMB 2025'!L20 -> 
E18: =IF(EingabeMaske!B29=0,"",EingabeMaske!B29) ->  | K18: =EingabeMaske!D29 -> 0
B19: Der objektspezifisch angepasste Vergleichsfaktor im Sinne von § 26 ImmoWertV wird durch Einsetzen der Einflussgrößen in die Anwendungsfunktion sowie anschließender Anpassung mit Hilfe der Indexreihe EFH an den Wertermittlungsstichtag ermittelt. Danach erfolgt die Multiplikation dieses objektspezifisch angepassten Vergleichsfaktors mit der Bezugsgröße (Wohnfläche), um den Vergleichswert zu erhalten. Weitere Besonderheiten, insbesondere die den Wert beeinflussenden Belastungen privatrechtlicher und öffentlich-rechtlicher Art, werden im Vergleichswertverfahren gemäß § 183 BewG nicht berücksichtigt.
B20: Berechnung des Vergleichswertes
B21: Ermittlung des Vergleichsfaktors (VF) aus der Anwendungsfunktion:
B22: VF (01.01.2024) = a + b x ASE + c x Gf + d x BWN(01.01.2024) + e x St + f x WF + g x WF² + h x Vs
B23: ="VF (01.01.2024) = "&K25&" + ("&H26&" x "&E26&") + "&H27&" x "&E27&" m² + "&H28&" x "&E28&" €/m² + "&H29&" x "&E29&" + "&H30&" x "&E30&" m² + ("&H31&" x ("&E30&" m²)²) + ("&H32&" x "&E32&")" -> 
B25: Marktsegment | C25: MS | D25: = | E25: =EingabeMaske!D32 -> 0 | G25: a | H25: =ROUND('Vergleichsdaten LGMB 2025'!I5,6) ->  | K25: =ROUND(H25,6) -> 
B26: Anzahl Sondereigentume im Gebäude | C26: ASE | D26: = | E26: =EingabeMaske!D17 -> 10 | F26: x | G26: b | H26: =ROUND('Vergleichsdaten LGMB 2025'!I6,6) -> 0 | J26: + | K26: =ROUND(H26*E26,6) -> 0
B27: Gesamtflächenanteil in m² (Grundstücksfläche x Miteigentumsanteil) | C27: GF | D27: = | E27: =EingabeMaske!D21 -> 100 | F27: x | G27: c | H27: =ROUND('Vergleichsdaten LGMB 2025'!I7,6) -> 0 | J27: + | K27: =ROUND(H27*E27,6) -> 0
B28: Bodenwertniveau zum 01.01.2024 in €/m² | C28: BWN | D28: = | E28: =EingabeMaske!D22 -> 300 | F28: x | G28: d | H28: =ROUND('Vergleichsdaten LGMB 2025'!I8,6) -> 0 | J28: + | K28: 0
B29: Gebäudestandard nach NHK 2010 | C29: St | D29: = | E29: =IF(EingabeMaske!C39='Vergleichsdaten LGMB 2025'!A23,EingabeMaske!D39,EingabeMaske!D31) -> Standardtabelle auf Blatt GebStandard ausfüllen | F29: x | G29: e | H29: =ROUND('Vergleichsdaten LGMB 2025'!I9,6) -> 0 | J29: +
B30: Wohnfläche | C30: WF | D30: = | E30: =EingabeMaske!D23 -> 82 | F30: x | G30: f | H30: =ROUND('Vergleichsdaten LGMB 2025'!I10,6) -> 0 | J30: + | K30: 0
C31: WF² | D31: = | E31: =E30^2 -> 6724 | F31: x | G31: g | H31: =ROUND('Vergleichsdaten LGMB 2025'!I11,6) -> 0 | J31: + | K31: 0
B32: Vermietungssituation | C32: VS | D32: = | E32: =EingabeMaske!D24 -> 0 | F32: x | G32: h | H32: =ROUND('Vergleichsdaten LGMB 2025'!I12,6) -> 0 | J32: + | K32: 0
J33: = | K33: =SUM(K25:K32) -> 
B34: vorl. Vergleichsfaktor (01.01.2024) aus der Anwendungsfunktion: | J34: rd. | K34: =ROUND(K33,2) -> 
B36: Berücksichtigung der veränderten Wertverhältnisse zwischen dem Richtwertstichtag und dem Wertermittlungsstichtag
B37: Zwischenergebnis: | K37: =K34 -> 
B38: UK Wertermittlungsstichtag (Index): | J38: x | K38: =EingabeMaske!D33 -> 
B39: UK Richtwertstichtag (Index): | J39: / | K39: =IF(K7<DATE(2025,1,2),'Indizes 2024 Schätzung 2025'!AA18,'Indizes 2025 Schätzung 2026'!AA18) -> 
B40: Zwischenergebnis: | K40: =ROUND(K37*K38/K39,2) -> 
B42: Zuschläge für Sondereigentume / Sondernutzungsrechte
B43: Zwischenergebnis: | K43: =K40 -> 
B44: Garage/n: | E44: =K15 ->  | F44: / | G44: =K13&" m² x "&K38&" / "&K39 ->  | J44: + | K44: =ROUND(E44/K$13*K$38/K$39,2) -> 
B45: Carport/s: | E45: =K16 ->  | F45: / | G45: =G44 ->  | H45: =K13 -> 82 | J45: + | K45: =ROUND(E45/K$13*K$38/K$39,2) -> 
B46: Außenstellplätze: | E46: =K17 ->  | F46: / | G46: =G44 ->  | H46: =K13 -> 82 | J46: +
B47: =E18 ->  | E47: =K18 -> 0 | F47: / | H47: =K13 -> 82 | J47: + | K47: =E47/H47 -> 0
B48: Zwischenergebnis: | J48: = | K48: =SUM(K43:K47) -> 
B49: Wohnfläche: | J49: x | K49: =K13 -> 82
B50: Vergleichswert (VW): | J50: = | K50: =ROUND(K48*K49,2) -> 
B51: Vergleichswert (gerundet): | K51: =ROUND(K50,-2) -> 
B54: =EingabeMaske!A41 -> Quelle: Oberer Gutachterausschuss für Grundstückswerte Rheinland-Pfalz gem. Landesgrundstückmarktbericht 2025

Sheet RND (hidden)
A1: Modell zur Ermittlung der Restnutzungsdauer für Wohngebäude bei Modernisierungen (Anlage 2 ImmoWertV)
A3: Modernisierungen, die in den letzten 10 Jahren durchgeführt wurden | G3: Punkte | L3: max. Punkte
A4: Dacherneuerung inklusive Verbesserung der Wärmedämmung | F4: nein | G4: =IF(F4="ja",L4,0) -> 0 | L4: 4
A5: Modernisierung der Fenster und Außentüren | F5: nein | G5: =IF(F5="ja",L5,0) -> 0 | L5: 2
A6: Modernisierung der Leitungssysteme (Strom, Gas, Wasser, Abwasser) | F6: nein | G6: 0 | L6: 2
A7: Modernisierung der Heizungsanlage | F7: nein | G7: 0 | L7: 2
A8: Wärmedämmung der Außenwände | F8: nein | G8: 0 | L8: 4
A9: Modernisierung von Bädern | F9: nein | G9: 0 | L9: 2
A10: Modernisierung des Innenausbaus, z.B. Decken, Fußböden, Treppen | F10: nein | G10: 0 | L10: 2
A11: Wesentliche Verbesserung der Grundrissgestaltung | F11: nein | G11: 0 | L11: 2
A12: Summe | G12: =SUM(G4:G11) -> 0 | L12: =SUM(L4:L11) -> 20
A14: Die Ermittlung der Restnutzungsdauer bei Modernisierungen soll pauschal erfolgen | G14: nein
A15: Modernisierungsgrad | G15: Punkte | J15: pauschale Angabe
A16: nicht modernisiert | G16: 0 | H16: - | I16: 1
A17: kleine Modernisierung im Rahmen der Instandhaltung | G17: 2 | H17: - | I17: 5
A18: mittlerer Modernisierungsgrad | G18: 6 | H18: - | I18: 10
A19: überwiegend modernisiert | G19: 11 | H19: - | I19: 17
A20: umfassend modernisiert | G20: 18 | H20: - | I20: 20
A22: maßgebliche Punktzahl zur Ermittlung der Restnutzungsdauer | G22: =IF(G14="nein",G12,SUM(J16:J20)) -> 0
A25: Ermittlung der Restnutzungsdauer und des rechnerischen Baujahres
A26: Vorgaben | B26: Stichtag | E26: nur das Jahr ! | G26: =YEAR(EingabeMaske!D15) -> 2024
B27: Baujahr | G27: =EingabeMaske!D16 -> 1995
B28: tatsächliches Alter | G28: =G26-G27 -> 29 | J28: Jahre
B29: Bestimmung der Restnutzungsdauer bei Gesamtnutzungsdauer nach ImmoWertV
B30: Gesamtnutzungsdauer | G30: 80 | J30: Jahre
B31: Restnutzungsdauer nach ImmoWertV | G31: =ROUND('RND ImmoWertV'!B10,0) -> 51 | J31: Jahre
B32: lineare Alterswertminderung | G32: =ROUND((G30-G31)/G30*100,2) -> 36.25 | J32: %
B33: fiktives Baujahr | G33: =G26-(G30-G31) -> 1995
B34: Die Ermittlung des fiktiven Baujahrs wurde durchgeführt | E34: FALSE | G34: =IF(E34=TRUE,"ja","nein") -> nein

Sheet Updates
A1: Nr. | B1: Rechnerversion | C1: Updates
A2: 1 | B2: WE-Rechner, Version 1 - LGMB 2025, Stand 04.2025 | C2: Umstellung des Rechners auf Anwendungsfunktion gemäß LGMG 2025
A3: 2 | B3: WE-Rechner, Version 2 - LGMB 2025, Stand 04.2025 | C3: Indexreihe 2025 und Schätzung 2026 eingefügt

Sheet Vergleichsdaten LGMB 2025 (hidden)
A1: Anwendungsfunktion | B1: VF (01.01.2024) = a + b x ASE + c x Gf + d x BWN(01.01.2024) + e x St + f x WF + g x WF² + h x Vs
A3: Marktsegment | B3: 1 | C3: 2 | D3: 3 | E3: 4 | F3: 5 | G3: 6 | I3: =EingabeMaske!D32 -> 0
A4: Koeffizienten
A5: a | B5: =Formel!B5 -> 0 | C5: =Formel!C5 -> 0 | D5: =Formel!D5 -> 0 | E5: =Formel!E5 -> 0 | F5: =Formel!F5 -> 0 | G5: =Formel!G5 -> 0 | I5: =LOOKUP(I3,B3:G3,B5:G5) -> 
A6: b | B6: =Formel!B6 -> 0 | C6: =Formel!C6 -> 0 | D6: =Formel!D6 -> 0 | E6: =Formel!E6 -> 0 | F6: =Formel!F6 -> 0 | G6: =Formel!G6 -> 0 | I6: =B6 -> 0
A7: c | B7: =Formel!B7 -> 0 | C7: =Formel!C7 -> 0 | D7: =Formel!D7 -> 0 | E7: =Formel!E7 -> 0 | F7: =Formel!F7 -> 0 | G7: =Formel!G7 -> 0 | I7: =B7 -> 0
A8: d | B8: =Formel!B8 -> 0 | C8: =Formel!C8 -> 0 | D8: =Formel!D8 -> 0 | E8: =Formel!E8 -> 0 | F8: =Formel!F8 -> 0 | G8: =Formel!G8 -> 0 | I8: 0
A9: e | B9: =Formel!B9 -> 0 | C9: =Formel!C9 -> 0 | D9: =Formel!D9 -> 0 | E9: =Formel!E9 -> 0 | F9: =Formel!F9 -> 0 | G9: =Formel!G9 -> 0 | I9: 0
A10: f | B10: =Formel!B10 -> 0 | C10: =Formel!C10 -> 0 | D10: =Formel!D10 -> 0 | E10: =Formel!E10 -> 0 | F10: =Formel!F10 -> 0 | G10: =Formel!G10 -> 0 | I10: 0
A11: g | B11: =Formel!B11 -> 0 | C11: =Formel!C11 -> 0 | D11: =Formel!D11 -> 0 | E11: =Formel!E11 -> 0 | F11: =Formel!F11 -> 0 | G11: =Formel!G11 -> 0 | I11: 0
A12: h | B12: =Formel!B12 -> 0 | C12: =Formel!C12 -> 0 | D12: =Formel!D12 -> 0 | E12: =Formel!E12 -> 0 | F12: =Formel!F12 -> 0 | G12: =Formel!G12 -> 0 | I12: 0
A16: Marktsegment | B16: 1 | C16: 2 | D16: 3 | E16: 4 | F16: 5 | G16: 6 | I16: =I3 -> 0
A17: Vergleichsfaktoren für Garagen / Carports und Außenstellplätze | J17: Anzahl | K17: Stellpätze | N17: nach Anwendungsfunktion
A18: Garage | B18: 6500 | C18: 7000 | D18: 7500 | E18: 10000 | F18: 12000 | G18: 16000 | I18: =LOOKUP(I16,B16:G16,B18:G18) ->  | J18: =EingabeMaske!B26 -> 0 | K18: =EingabeMaske!D26 -> 0 | L18: =I18*J18+IF(J18>0,0.75*(K18-J18)*I18,0) ->  | N18: =-21162.69475+5878.275748*LN(EingabeMaske!D22) -> 12365.71144 | O18: Einzelgarage
A19: Carports | B19: =ROUND(0.85*B18,-2) -> 5500 | C19: =ROUND(0.85*C18,-2) -> 6000 | D19: 6400 | E19: 8500 | F19: 10200 | G19: 13600 | I19: =LOOKUP(I16,B16:G16,B19:G19) ->  | J19: =EingabeMaske!B27 -> 0 | K19: =EingabeMaske!D27 -> 0 | L19: =I19*J19+IF(J19>0,0.75*(K19-J19)*I19,0) ->  | N19: =-11875.37426+4017.87749*LN(EingabeMaske!D22) -> 11041.72495 | O19: Tiefgarage
A20: Außenstellplätze | B20: 2500 | C20: 3000 | D20: 5300 | E20: 7300 | F20: 8100 | G20: 9400 | I20: =LOOKUP(I16,B16:G16,B20:G20) ->  | J20: =EingabeMaske!D28 -> 0 | L20: =I20*J20 ->  | N20: =-4652.85034+2120.189089*LN(EingabeMaske!D22) -> 7440.247029 | O20: Außenstellplatz (befestigt)
A22: Dropdown
A23: Gebäudestandard nach fiktivem Baujahr übernehmen
A24: Gebäudestandard nach fiktivem Baujahr nicht übernehmen
A26: Dropdown
A27: ja
A28: nein
A32: Baujahr | B32: Standardstufe
A33: =EingabeMaske!B39 -> liegt nicht vor | B33: =IF(RND!G34="nein","-",IF(A33<=1976,2,IF(A33>=2016,4.5,VLOOKUP(A33,A35:B75,2,FALSE)))) -> -
A35: < =1975 | B35: 2
A36: 1976 | B36: 2
A37: =A36+1 -> 1977 | B37: =ROUND(B$35+D37/D$45*0.5,1) -> 2.1 | D37: 1
A38: 1978 | B38: =ROUND(B$35+D38/D$45*0.5,1) -> 2.1 | D38: =D37+1 -> 2
A39: 1979 | B39: 2.2 | D39: 3
A40: 1980 | B40: 2.2 | D40: 4
A41: 1981 | B41: 2.3 | D41: 5
A42: 1982 | B42: 2.3 | D42: 6
A43: 1983 | B43: 2.4 | D43: 7
A44: 1984 | B44: 2.4 | D44: 8
A45: 1985 | B45: 2.5 | D45: 9
A46: 1986 | B46: 2.5 | D46: 10
A47: 1987 | B47: =ROUND(B$45+D47/D$55*0.5,1) -> 2.6 | D47: 1
A48: 1988 | B48: =ROUND(B$45+D48/D$55*0.5,1) -> 2.6 | D48: =D47+1 -> 2
A49: 1989 | B49: 2.7 | D49: 3
A50: 1990 | B50: 2.7 | D50: 4
A51: 1991 | B51: 2.8 | D51: 5
A52: 1992 | B52: 2.8 | D52: 6
A53: 1993 | B53: 2.9 | D53: 7
A54: 1994 | B54: 2.9 | D54: 8
A55: 1995 | B55: 3 | D55: 9
A56: 1996 | B56: 3 | D56: 10
A57: 1997 | B57: =ROUND(B$55+D57/D$65*1,1) -> 3.1 | D57: 1
A58: 1998 | B58: =ROUND(B$55+D58/D$65*1,1) -> 3.2 | D58: =D57+1 -> 2
A59: 1999 | B59: 3.3 | D59: 3
A60: 2000 | B60: 3.4 | D60: 4
A61: 2001 | B61: 3.6 | D61: 5
A62: 2002 | B62: 3.7 | D62: 6
A63: 2003 | B63: 3.8 | D63: 7
A64: 2004 | B64: 3.9 | D64: 8
A65: 2005 | B65: 4 | D65: 9
A66: 2006 | B66: 4 | D66: 10
A67: 2007 | B67: =ROUND(B$65+D67/D$75*0.5,1) -> 4.1 | D67: 1
A68: 2008 | B68: =ROUND(B$65+D68/D$75*0.5,1) -> 4.1 | D68: 2
A69: 2009 | B69: =ROUND(B$65+D69/D$75*0.5,1) -> 4.2 | D69: 3
A70: 2010 | B70: 4.2 | D70: 4
A71: 2011 | B71: 4.3 | D71: 5
A72: 2012 | B72: 4.3 | D72: 6
A73: 2013 | B73: 4.4 | D73: 7
A74: 2014 | B74: 4.4 | D74: 8
A75: 2015 | B75: 4.5 | D75: 9
A76: 2016 | B76: 4.5 | D76: 10

Sheet Formel (hidden)

Sheet UK (hidden)

Sheet Vergleichsfaktoren 2025 (2) (hidden)
B1: Vergleichsfaktoren (VF) für Wohnungseigentume im Weiterverkauf
D2: Stichtag | E2: 2024-01-01
B3: Modell s. LGMB 2025, Kap. 4.4.1.2 - © Oberer Gutachterausschuss für Grundstückswerte Rheinland-Pfalz
B4: Kurzbeschreibung des Richtwertobjekts: 10 Einheiten im Objekt, Grundstücksgröße 1.300 m², mittlerer Standard, Wohnfäche 80 m², Geb.Std. 3
B5: Hinweis: Sollte eine Gemarkung nicht nachgewiesen sein, kann eine vergleichbare Gemarkung desselben Marktsegments herangezogen werden.
A6: Ergänzung LfSt
A7: Gemeinde / Gemarkung / Landkreis bzw. Stadt | B7: Nr. | C7: Gemarkung | D7: Gemeinde | E7: Landkreis/kreisfreie Stadt | F7: Markt-segment Nr. | G7: BWN €/m² Grdst.fl. | H7: VF €/m² Wohnfl.
A8: =D8&" / "&C8&" / "&E8 -> / /
A9: =D9&" / "&C9&" / "&E9 -> / /
A10: / /
A11: / /
A12: / /
A13: / /
A14: / /
A15: / /
A16: / /
A17: / /
A18: / /
A19: / /
A20: / /
A21: / /
A22: / /
A23: / /
A24: / /
A25: / /
A26: / /
A27: / /
A28: / /
A29: / /
A30: / /
A31: / /
A32: / /
A33: / /
A34: / /
A35: / /
A36: / /
A37: / /
A38: / /
A39: / /
A40: / /
A41: / /
A42: / /
A43: / /
A44: / /
A45: / /
A46: / /
A47: / /
A48: / /
A49: / /
A50: / /
A51: / /
A52: / /
A53: / /
A54: / /
A55: / /
A56: / /
A57: / /
A58: / /
A59: / /
A60: / /
A61: / /
A62: / /
A63: / /
A64: / /
A65: / /
A66: / /
A67: / /
A68: / /
A69: / /
A70: / /
A71: / /
A72: / /
A73: =D73&" / "&C73&" / "&E73 -> / /
A74: / /
A75: / /
A76: / /
A77: / /
A78: / /
A79: / /
A80: / /
A81: / /
A82: / /
A83: / /
A84: / /
A85: / /
A86: / /
A87: / /
A88: / /
A89: / /
A90: / /
A91: / /
A92: / /
A93: / /
A94: / /
A95: / /
A96: / /
A97: / /
A98: / /
A99: / /
A100: / /
A101: / /
A102: / /
A103: / /
A104: / /
A105: / /
A106: / /
A107: / /
A108: / /
A109: / /
A110: / /
A111: / /
A112: / /
A113: / /
A114: / /
A115: / /
A116: / /
A117: / /
A118: / /
A119: / /
A120: / /
A121: / /
A122: / /
A123: / /
A124: / /
A125: / /
A126: / /
A127: / /
A128: / /
A129: / /
A130: / /
A131: / /
A132: / /
A133: / /
A134: / /
A135: / /
A136: / /
A137: =D137&" / "&C137&" / "&E137 -> / /
A138: / /
A139: / /
A140: / /
A141: / /
A142: / /
A143: / /
A144: / /
A145: / /
A146: / /
A147: / /
A148: / /
A149: / /
A150: / /
A151: / /
A152: / /
A153: / /
A154: / /
A155: / /
A156: / /
A157: / /
A158: / /
A159: / /
A160: / /
A161: / /
A162: / /
A163: / /
A164: / /
A165: / /
A166: / /
A167: / /
A168: / /
A169: / /
A170: / /
A171: / /
A172: / /
A173: / /
A174: / /
A175: / /
A176: / /
A177: / /
A178: / /
A179: / /
A180: / /
A181: / /
A182: / /
A183: / /
A184: / /
A185: / /
A186: / /
A187: / /
A188: / /
A189: / /
A190: / /
A191: / /
A192: / /
A193: / /
A194: / /
A195: / /
A196: / /
A197: / /
A198: / /
A199: / /
A200: / /
... 2822 more rows

Sheet Indizes 2024 Schätzung 2025 (hidden)
A1: Quelle: Oberer Gutachterausschuss für Grundstückswerte Rheinland-Pfalz gem. Landesgrundstückmarkbericht 2025
A2: =EingabeMaske!E1 -> WE-Rechner, Version 2 - LGMB 2025, Stand 11.2025
B8: Indizes jeweils zum 1.1. des Jahres, für Rechner des LfSt inkl. Schätzung 1.1.2025 | V8: Marktsegment | W8: Stichtag | Y8: =DATE(W10,1,1) -> 2024-01-01 | Z8: =DATE(X10,1,1) -> 2025-01-01 | AA8: Stichtag Richtwert
B9: Preisindex für Wohnungseigentume (Weiterverkäufe) | Q9: Stichtag Richtwert | R9: Schätzung OGA | S9: LfST | V9: =EingabeMaske!D32 -> 0 | W9: =EingabeMaske!D15 -> 2024-01-02 | Y9: Tage | Z9: Tage | AA9: 2024-01-01
B10: Markt-segment | C10: 2010 | D10: 2011 | E10: 2012 | F10: 2013 | G10: 2014 | H10: 2015 | I10: 2016 | J10: 2017 | K10: 2018 | L10: 2019 | M10: 2020 | N10: 2021 | O10: 2022 | P10: 2023 | Q10: 2024 | R10: 2025 | S10: 2026 | W10: =YEAR(W9) -> 2024 | X10: =W10+1 -> 2025 | Y10: =_xlfn.DAYS(W9,Y8) -> 1 | Z10: =_xlfn.DAYS(Z8,Y8) -> 366 | AA10: =YEAR(AA9) -> 2024
B11: 1 | C11: 100 | D11: 85.79365079 | E11: 88.86243386 | F11: 92.11640212 | G11: 98.25396825 | H11: 97.39417989 | I11: 101.9444444 | J11: 113.1613757 | K11: 118.2539683 | L11: 126.7989418 | M11: 138.4920635 | N11: 158.9417989 | O11: 186 | P11: 167 | Q11: 186 | R11: =Q11 -> 186 | S11: =R11 -> 186 | V11: 1 | W11: =ROUND(HLOOKUP(W$10,$C$10:$S$17,2),1) -> 186 | X11: =ROUND(HLOOKUP(X$10,$C$10:$S$17,2),1) -> 186 | Y11: =W11+(X11-W11)*$Y$10/$Z$10 -> 186 | AA11: =HLOOKUP($AA$10,$E$10:$Q$17,2) -> 186
B12: 2 | C12: 100 | D12: 99.24712135 | E12: 98.0513729 | F12: 99.24712135 | G12: 98.81532329 | H12: 102.4357839 | I12: 105.8237378 | J12: 111.6142604 | K12: 119.2648361 | L12: 127.5907883 | M12: 139.8804252 | N12: 157 | O12: 181 | P12: 194 | Q12: 192 | R12: =Q12 -> 192 | S12: 192 | V12: 2 | W12: =ROUND(HLOOKUP(W$10,$C$10:$S$17,3),1) -> 192 | X12: =ROUND(HLOOKUP(X$10,$C$10:$S$17,3),1) -> 192 | Y12: =W12+(X12-W12)*$Y$10/$Z$10 -> 192 | AA12: =HLOOKUP($AA$10,$E$10:$Q$17,3) -> 192
B13: 3 | C13: 100 | D13: 99.64147561 | E13: 105.7175205 | F13: 108.2083215 | G13: 112.010567 | H13: 114.9731107 | I13: 123.1248231 | J13: 131.4086235 | K13: 142.1266157 | L13: 150.6934616 | M13: 167.2704972 | N13: 188 | O13: 230 | P13: 233 | Q13: 230 | R13: 230 | S13: 230 | V13: 3 | W13: =ROUND(HLOOKUP(W$10,$C$10:$S$17,4),1) -> 230 | X13: =ROUND(HLOOKUP(X$10,$C$10:$S$17,4),1) -> 230 | Y13: 230 | AA13: =HLOOKUP($AA$10,$E$10:$Q$17,4) -> 230
B14: 4 | C14: 100 | D14: 102.3512123 | E14: 105.8137399 | F14: 110.9294636 | G14: 116.1094783 | H14: 123.5855988 | I14: 131.2637766 | J14: 143.9933872 | K14: 157.2189566 | L14: 174.4489346 | M14: 193.8280676 | N14: 223 | O14: 263 | P14: 256 | Q14: 231 | R14: 231 | S14: 231 | V14: 4 | W14: =ROUND(HLOOKUP(W$10,$C$10:$S$17,5),1) -> 231 | X14: =ROUND(HLOOKUP(X$10,$C$10:$S$17,5),1) -> 231 | Y14: =W14+(X14-W14)*$Y$10/$Z$10 -> 231 | AA14: =HLOOKUP($AA$10,$E$10:$Q$17,5) -> 231
B15: 5 | C15: 100 | D15: 103.4715026 | E15: 109.6447076 | F15: 115.9289415 | G15: 124.3079201 | H15: 132.0873427 | I15: 142.6868986 | J15: 153.8490007 | K15: 166.4988897 | L15: 183.5159141 | M15: 203.1088083 | N15: 227 | O15: 253 | P15: 248 | Q15: 227 | R15: 227 | S15: 227 | V15: 5 | W15: =ROUND(HLOOKUP(W$10,$C$10:$S$17,6),1) -> 227 | X15: =ROUND(HLOOKUP(X$10,$C$10:$S$17,6),1) -> 227 | Y15: 227 | AA15: =HLOOKUP($AA$10,$E$10:$Q$17,6) -> 227
B16: 6 | C16: 100 | D16: 103.1026253 | E16: 108.3465924 | F16: 117.8334659 | G16: 126.9888624 | H16: 138.3717847 | I16: 151.6308671 | J16: 167.7340228 | K16: 182.9819676 | L16: 199.8740387 | M16: 218.4036065 | N16: 245.3725802 | O16: 276 | P16: 263 | Q16: 248 | R16: 248 | S16: 248 | V16: 6 | W16: =ROUND(HLOOKUP(W$10,$C$10:$S$17,7),1) -> 248 | X16: =ROUND(HLOOKUP(X$10,$C$10:$S$17,7),1) -> 248 | Y16: =W16+(X16-W16)*$Y$10/$Z$10 -> 248 | AA16: =HLOOKUP($AA$10,$E$10:$Q$17,7) -> 248
B17: Ø RLP | C17: 100 | D17: 101.754386 | E17: 105.4704944 | F17: 110.3987241 | G17: 115.9968102 | H17: 122.3923445 | I17: 131.8181818 | J17: 143.6204147 | K17: 156.6427432 | L17: 171.9059011 | M17: 189.76874 | N17: 213 | O17: 240 | P17: 237 | Q17: 214 | R17: 214 | S17: 214 | V17: Ø RLP | W17: =ROUND(HLOOKUP(W$10,$C$10:$S$17,8),1) -> 214 | X17: =ROUND(HLOOKUP(X$10,$C$10:$S$17,8),1) -> 214 | Y17: 214 | AA17: =HLOOKUP($AA$10,$E$10:$Q$17,8) -> 214
V18: =V9 -> 0 | X18: = | Y18: =ROUND(VLOOKUP(V9,V11:Y17,4),1) ->  | AA18: =ROUND(VLOOKUP(V9,V11:AA17,6),1) -> 
B19: © Oberer Gutachterausschuss für Grundstückswerte Rheinland-Pfalz, Stand Juli 2024
B20: vgl. LGMB 2025, Abschnitt 4.6.2

Sheet Indizes 2025 Schätzung 2026 (hidden)
A1: Quelle: Oberer Gutachterausschuss für Grundstückswerte Rheinland-Pfalz gem. Landesgrundstückmarkbericht 2025
A2: =EingabeMaske!E1 -> WE-Rechner, Version 2 - LGMB 2025, Stand 11.2025
B8: Indizes jeweils zum 1.1. des Jahres, für Rechner des LfSt inkl. Schätzung 1.1.2026 | V8: Marktsegment | W8: Stichtag | Y8: =DATE(W10,1,1) -> 2024-01-01 | Z8: =DATE(X10,1,1) -> 2025-01-01 | AA8: Stichtag Richtwert
B9: Preisindex für Wohnungseigentume (Weiterverkäufe) | Q9: Stichtag Richtwert | R9: neu | S9: Schätzung OGA | T9: LfST | V9: =EingabeMaske!D32 -> 0 | W9: =EingabeMaske!D15 -> 2024-01-02 | Y9: Tage | Z9: Tage | AA9: 2024-01-01
B10: Markt-segment | C10: 2010 | D10: 2011 | E10: 2012 | F10: 2013 | G10: 2014 | H10: 2015 | I10: 2016 | J10: 2017 | K10: 2018 | L10: 2019 | M10: 2020 | N10: 2021 | O10: 2022 | P10: 2023 | Q10: 2024 | R10: 2025 | S10: 2026 | T10: 2027 | W10: =YEAR(W9) -> 2024 | X10: =W10+1 -> 2025 | Y10: =_xlfn.DAYS(W9,Y8) -> 1 | Z10: =_xlfn.DAYS(Z8,Y8) -> 366 | AA10: =YEAR(AA9) -> 2024
B11: 1 | C11: 100 | D11: 85.79365079 | E11: 88.86243386 | F11: 92.11640212 | G11: 98.25396825 | H11: 97.39417989 | I11: 101.9444444 | J11: 113.1613757 | K11: 118.2539683 | L11: 126.7989418 | M11: 138.4920635 | N11: 158.9417989 | O11: 186 | P11: 167 | Q11: 185 | R11: 178 | S11: =R11 -> 178 | T11: =S11 -> 178 | V11: 1 | W11: =ROUND(HLOOKUP(W$10,$C$10:$T$17,2),1) -> 185 | X11: =ROUND(HLOOKUP(X$10,$C$10:$T$17,2),1) -> 178 | Y11: =W11+(X11-W11)*$Y$10/$Z$10 -> 184.9808743 | AA11: =HLOOKUP($AA$10,$E$10:$Q$17,2) -> 185
B12: 2 | C12: 100 | D12: 99.24712135 | E12: 98.0513729 | F12: 99.24712135 | G12: 98.81532329 | H12: 102.4357839 | I12: 105.8237378 | J12: 111.6142604 | K12: 119.2648361 | L12: 127.5907883 | M12: 139.8804252 | N12: 157 | O12: 181 | P12: 194 | Q12: 184 | R12: 214 | S12: =R12 -> 214 | T12: 214 | V12: 2 | W12: =ROUND(HLOOKUP(W$10,$C$10:$T$17,3),1) -> 184 | X12: =ROUND(HLOOKUP(X$10,$C$10:$T$17,3),1) -> 214 | Y12: =W12+(X12-W12)*$Y$10/$Z$10 -> 184.0819672 | AA12: =HLOOKUP($AA$10,$E$10:$Q$17,3) -> 184
B13: 3 | C13: 100 | D13: 99.64147561 | E13: 105.7175205 | F13: 108.2083215 | G13: 112.010567 | H13: 114.9731107 | I13: 123.1248231 | J13: 131.4086235 | K13: 142.1266157 | L13: 150.6934616 | M13: 167.2704972 | N13: 188 | O13: 230 | P13: 233 | Q13: 231 | R13: 228 | S13: 228 | T13: 228 | V13: 3 | W13: =ROUND(HLOOKUP(W$10,$C$10:$T$17,4),1) -> 231 | X13: =ROUND(HLOOKUP(X$10,$C$10:$T$17,4),1) -> 228 | Y13: 230.9918033 | AA13: =HLOOKUP($AA$10,$E$10:$Q$17,4) -> 231
B14: 4 | C14: 100 | D14: 102.3512123 | E14: 105.8137399 | F14: 110.9294636 | G14: 116.1094783 | H14: 123.5855988 | I14: 131.2637766 | J14: 143.9933872 | K14: 157.2189566 | L14: 174.4489346 | M14: 193.8280676 | N14: 223 | O14: 263 | P14: 256 | Q14: 233 | R14: 246 | S14: 246 | T14: 246 | V14: 4 | W14: =ROUND(HLOOKUP(W$10,$C$10:$T$17,5),1) -> 233 | X14: =ROUND(HLOOKUP(X$10,$C$10:$T$17,5),1) -> 246 | Y14: =W14+(X14-W14)*$Y$10/$Z$10 -> 233.0355191 | AA14: =HLOOKUP($AA$10,$E$10:$Q$17,5) -> 233
B15: 5 | C15: 100 | D15: 103.4715026 | E15: 109.6447076 | F15: 115.9289415 | G15: 124.3079201 | H15: 132.0873427 | I15: 142.6868986 | J15: 153.8490007 | K15: 166.4988897 | L15: 183.5159141 | M15: 203.1088083 | N15: 227 | O15: 253 | P15: 248 | Q15: 227 | R15: 231 | S15: 231 | T15: 231 | V15: 5 | W15: =ROUND(HLOOKUP(W$10,$C$10:$T$17,6),1) -> 227 | X15: =ROUND(HLOOKUP(X$10,$C$10:$T$17,6),1) -> 231 | Y15: 227.010929 | AA15: =HLOOKUP($AA$10,$E$10:$Q$17,6) -> 227
B16: 6 | C16: 100 | D16: 103.1026253 | E16: 108.3465924 | F16: 117.8334659 | G16: 126.9888624 | H16: 138.3717847 | I16: 151.6308671 | J16: 167.7340228 | K16: 182.9819676 | L16: 199.8740387 | M16: 218.4036065 | N16: 245.3725802 | O16: 276 | P16: 263 | Q16: 250 | R16: 248 | S16: 248 | T16: 248 | V16: 6 | W16: =ROUND(HLOOKUP(W$10,$C$10:$T$17,7),1) -> 250 | X16: =ROUND(HLOOKUP(X$10,$C$10:$T$17,7),1) -> 248 | Y16: =W16+(X16-W16)*$Y$10/$Z$10 -> 249.9945355 | AA16: =HLOOKUP($AA$10,$E$10:$Q$17,7) -> 250
B17: Ø RLP | C17: 100 | D17: 101.754386 | E17: 105.4704944 | F17: 110.3987241 | G17: 115.9968102 | H17: 122.3923445 | I17: 131.8181818 | J17: 143.6204147 | K17: 156.6427432 | L17: 171.9059011 | M17: 189.76874 | N17: 213 | O17: 240 | P17: 237 | Q17: 222 | R17: 230 | S17: 230 | T17: 230 | V17: Ø RLP | W17: =ROUND(HLOOKUP(W$10,$C$10:$T$17,8),1) -> 222 | X17: =ROUND(HLOOKUP(X$10,$C$10:$T$17,8),1) -> 230 | Y17: 222.0218579 | AA17: =HLOOKUP($AA$10,$E$10:$Q$17,8) -> 222
V18: =V9 -> 0 | X18: = | Y18: =ROUND(VLOOKUP(V9,V11:Y17,4),1) ->  | AA18: =ROUND(VLOOKUP(V9,V11:AA17,6),1) -> 
B19: © Oberer Gutachterausschuss für Grundstückswerte Rheinland-Pfalz, Stand Juli 2025
B20: vgl. LGMB 2023, Abschnitt 4.6.1 und 4.6.2

Sheet RND ImmoWertV (hidden)
A2: Restnutzungsdauer bei Modernisierung nach ImmoWertV
J3: a | K3: 1.25 | L3: 1.25 | M3: 1.0767 | N3: 0.9033 | O3: 0.73 | P3: 0.6725 | Q3: 0.615 | R3: 0.5575 | S3: 0.5 | T3: 0.466 | U3: 0.432 | V3: 0.398 | W3: 0.364 | X3: 0.33 | Y3: 0.304 | Z3: 0.278 | AA3: 0.252 | AB3: 0.226 | AC3: 0.2 | AD3: 0.2 | AE3: 0.2
J4: b | K4: 2.625 | L4: 2.625 | M4: 2.2757 | N4: 1.9263 | O4: 1.577 | P4: 1.4578 | Q4: 1.3385 | R4: 1.2193 | S4: 1.1 | T4: 1.027 | U4: 0.954 | V4: 0.881 | W4: 0.808 | X4: 0.735 | Y4: 0.676 | Z4: 0.617 | AA4: 0.558 | AB4: 0.499 | AC4: 0.44 | AD4: 0.44 | AE4: 0.44
J5: c | K5: 1.525 | L5: 1.525 | M5: 1.3878 | N5: 1.2505 | O5: 1.1133 | P5: 1.085 | Q5: 1.0567 | R5: 1.0283 | S5: 1 | T5: 0.9906 | U5: 0.9811 | V5: 0.9717 | W5: 0.9622 | X5: 0.9528 | Y5: 0.9506 | Z5: 0.9485 | AA5: 0.9463 | AB5: 0.9442 | AC5: 0.942 | AD5: 0.942 | AE5: 0.942
J6: ab rel. Alter | K6: 60 | L6: 60 | M6: 55 | N6: 55 | O6: 40 | P6: 35 | Q6: 30 | R6: 25 | S6: 20 | T6: 19 | U6: 18 | V6: 17 | W6: 16 | X6: 15 | Y6: 14 | Z6: 13 | AA6: 12 | AB6: 11 | AC6: 10 | AD6: 10 | AE6: 10
B8: Ergebnis | H8: Vorgaben
B9: RND | C9: Pkte | D9: abger. Pkte | E9: RND | F9: aufger. Pkte | G9: RND | H9: GND | I9: Alter | J9: rel. Alter [%] | K9: 0 | L9: =K9+1 -> 1 | M9: =L9+1 -> 2 | N9: 3 | O9: 4 | P9: 5 | Q9: 6 | R9: 7 | S9: 8 | T9: 9 | U9: 10 | V9: 11 | W9: 12 | X9: 13 | Y9: 14 | Z9: 15 | AA9: 16 | AB9: 17 | AC9: 18 | AD9: 19 | AE9: 20
A10: 1 | B10: =ROUND(E10+(C10-D10)*(G10-E10),0) -> 51 | C10: =RND!G22 -> 0 | D10: =ROUNDDOWN(C10,0) -> 0 | E10: =IF($J10=0,0,HLOOKUP(D10,$K$9:$AE$10,$A10+1,0)) -> 51 | F10: =ROUNDUP(C10,0) -> 0 | G10: =IF($J10=0,0,HLOOKUP(F10,$K$9:$AE$10,$A10+1,0)) -> 51 | H10: =RND!G30 -> 80 | I10: =RND!G28 -> 29 | J10: =IF(H10=0,0,I10/H10*100) -> 36.25 | K10: =ROUND(IF(($J10>=K$6)*($H10>=$I10),K$3*$I10^2/$H10-K$4*$I10+K$5*$H10,IF(($J10>=K$6)*($H10<$I10),K$3*$H10^2/$H10-K$4*$H10+K$5*$H10,$H10-$I10)),2) -> 51 | L10: =ROUND(IF(($J10>=L$6)*($H10>=$I10),L$3*$I10^2/$H10-L$4*$I10+L$5*$H10,IF(($J10>=L$6)*($H10<$I10),L$3*$H10^2/$H10-L$4*$H10+L$5*$H10,$H10-$I10)),2) -> 51 | M10: 51 | N10: 51 | O10: 51 | P10: 51.59 | Q10: 52.18 | R10: 52.77 | S10: 53.36 | T10: 54.36 | U10: 55.36 | V10: 56.37 | W10: 57.37 | X10: 58.38 | Y10: 59.64 | Z10: 60.91 | AA10: 62.17 | AB10: 63.44 | AC10: 64.7 | AD10: 64.7 | AE10: 64.7
B12: Mindestrestnunzungsdauer:
B13: =30%*H10 -> 24
B14: maßgeblich:
B15: =IF(B13>B10,B13,B10) -> 51 | C15: Jahre
